bitfinex/quotes_BTCUSD_20251120
["timestamp","ask_amount","ask_price","bid_price","bid_amount"]
[1763655521690,0.002,88787.0,88751.0,0.32342]
[1763655521916,0.002,88787.0,88750.0,0.03412877]
[1763655521917,0.001,88793.0,88762.0,0.05210249]
[1763655522561,0.04963,88786.0,88743.0,0.327]
[1763655522769,0.09715,88792.0,88751.0,0.323]
[1763655522770,0.004,88785.0,88751.0,0.323]
[1763655522977,0.10715,88792.0,88752.0,0.07463719]
[1763655522978,0.01688315,88766.0,88752.0,0.07463719]
[1763655523188,0.01688315,88766.0,88750.0,0.00032596]
[1763655523818,0.01688315,88751.0,88750.0,0.00032596]
[1763655525920,0.06651315,88751.0,88750.0,0.00032596]
[1763655526124,0.07316447,88751.0,88750.0,0.00032596]
[1763655526342,0.07316447,88751.0,88750.0,0.05242845]
[1763655526561,0.12068447,88751.0,88750.0,0.05242845]
[1763655526780,3.16744447,88751.0,88694.0,0.00042]
[1763655526996,0.04963,88743.0,88694.0,0.00042]
[1763655527199,3.04963,88743.0,88742.0,0.21351798]
[1763655527434,3.14678,88743.0,88742.0,0.21351798]
[1763655527858,0.14678,88743.0,88742.0,0.21351798]
[1763655528066,0.14678,88743.0,88742.0,0.26562047]
[1763655528301,0.08231986,88751.0,88743.0,0.05210249]
[1763655528591,0.04963,88750.0,88743.0,0.05070249]
[1763655528802,0.04963,88744.0,88743.0,0.05070249]
[1763655529643,0.04963,88749.0,88743.0,0.05070249]
[1763655530074,0.01767411,88775.0,88743.0,0.39623947]
[1763655530304,0.01688315,88744.0,88743.0,0.05070249]
[1763655530951,0.16366315,88744.0,88743.0,0.05070249]
[1763655531196,0.16366315,88744.0,88743.0,0.06070249]
[1763655531409,0.18042547,88744.0,88743.0,0.06070249]
[1763655531617,0.18042547,88744.0,88743.0,0.01]
[1763655532027,3.18042547,88744.0,88743.0,0.01]
[1763655532251,0.16366315,88744.0,88743.0,0.06210249]
[1763655532505,0.07047315,88744.0,88743.0,0.06210249]
[1763655534170,0.01788315,88744.0,88743.0,0.06210249]
[1763655534599,0.01688315,88744.0,88743.0,0.06210249]
[1763655535012,0.01788315,88744.0,88743.0,0.06210249]
[1763655535421,0.06751315,88744.0,88743.0,0.06210249]
[1763655536531,0.16466315,88744.0,88743.0,0.06210249]
[1763655536733,0.06751315,88744.0,88743.0,0.06210249]
[1763655537136,0.01788315,88744.0,88743.0,0.06210249]
[1763655537314,0.06751315,88744.0,88743.0,0.07210249]
[1763655538121,0.01,88769.0,88744.0,0.05210249]
[1763655538333,0.01,88770.0,88744.0,0.05210249]
[1763655538547,0.04963,88765.0,88744.0,0.05210249]
[1763655538968,0.01688315,88745.0,88744.0,0.05210249]
[1763655539396,0.01688315,88745.0,88743.0,0.02]
[1763655539397,0.06651315,88745.0,88743.0,0.02]
[1763655539632,0.06651315,88745.0,88744.0,0.05210249]
[1763655540256,0.07316447,88745.0,88744.0,0.05210249]
[1763655540464,0.07316447,88745.0,88743.0,0.02]
[1763655540465,0.011,88744.0,88743.0,0.02]
[1763655540883,0.01496,88744.0,88743.0,0.02]
[1763655541094,0.11211,88744.0,88743.0,0.02]
[1763655541312,0.11211,88744.0,88742.0,0.21351798]
[1763655541313,3.12400932,88744.0,88742.0,0.21351798]
[1763655541518,0.04963,88743.0,88742.0,0.21351798]
[1763655541726,0.14678,88743.0,88742.0,0.21351798]
[1763655541932,3.14678,88743.0,88742.0,0.21351798]
[1763655543589,3.14678,88743.0,88742.0,0.20051798]
[1763655543846,3.14678,88743.0,88686.0,0.01013]
[1763655543847,0.01,88710.0,88686.0,0.01013]
[1763655544028,0.01,88710.0,88673.0,0.02495]
[1763655544029,0.04963,88701.0,88700.0,0.00028032]
[1763655544663,0.13981,88701.0,88700.0,0.00153454]
[1763655544877,0.154187,88701.0,88700.0,0.00153454]
[1763655545099,0.04963,88701.0,88700.0,0.00153454]
[1763655545311,0.04605,88709.0,88701.0,0.05210249]
[1763655545536,0.04963,88705.0,88700.0,0.00028032]
[1763655545745,0.04963,88701.0,88700.0,0.00028032]
[1763655546629,0.13981,88701.0,88700.0,0.00028032]
[1763655546850,0.14081,88701.0,88700.0,0.00028032]
[1763655547074,0.001,88701.0,88700.0,0.00028032]
[1763655547302,0.09018,88734.0,88701.0,0.05210249]
[1763655547303,0.01688315,88722.0,88701.0,0.05210249]
[1763655547519,0.01688315,88722.0,88692.0,0.323]
[1763655547520,0.01688315,88722.0,88703.0,0.05210249]
[1763655547746,0.01688315,88722.0,88705.0,0.05210249]
[1763655547955,0.01688315,88722.0,88707.0,0.05210249]
[1763655548167,0.01688315,88722.0,88709.0,0.05210249]
[1763655548379,0.01688315,88722.0,88720.0,0.05210249]
[1763655548597,0.01688315,88745.0,88727.0,0.05210249]
[1763655548808,0.01688315,88730.0,88729.0,0.06337276]
[1763655549031,0.01688315,88730.0,88721.0,0.02254257]
[1763655549032,0.04605,88799.0,88757.0,0.0633692]
[1763655549238,0.04605,88832.0,88757.0,0.0633692]
[1763655549239,0.00396,88804.0,88765.0,0.05210249]
[1763655549451,0.04605,88832.0,88775.0,0.01126443]
[1763655549452,0.09018,88819.0,88775.0,0.01126443]
[1763655549665,0.09018,88819.0,88768.0,0.01126532]
[1763655549666,0.04605,88799.0,88755.0,0.02333]
[1763655549877,0.04605,88799.0,88749.0,0.00396]
[1763655549878,0.01688315,88756.0,88751.0,0.323]
[1763655550089,0.01688315,88756.0,88752.0,0.05210249]
[1763655550318,0.01688315,88756.0,88744.0,0.01321]
[1763655550319,0.00012558,88756.0,88755.0,0.22533941]
[1763655550551,0.04605,88827.0,88768.0,0.05210249]
[1763655550552,0.00396,88813.0,88768.0,0.05210249]
[1763655550773,0.01730324,88798.0,88770.0,0.05210249]
[1763655551001,0.00042009,88798.0,88770.0,0.05210249]
[1763655551238,0.01688315,88796.0,88782.0,0.05210249]
[1763655552206,0.01688315,88796.0,88784.0,0.05210249]
[1763655552444,0.01688315,88796.0,88786.0,0.05210249]
[1763655552866,0.00042009,88798.0,88792.0,0.05210249]
[1763655553083,0.01688315,88795.0,88794.0,0.05210249]
[1763655553331,0.00142009,88798.0,88794.0,0.05210249]
[1763655553546,0.01688315,88795.0,88794.0,0.05210249]
[1763655554028,0.01688315,88795.0,88769.0,0.02333]
[1763655554029,0.01688315,88795.0,88758.0,0.02333]
[1763655554253,0.01688315,88795.0,88748.0,0.01126785]
[1763655554254,0.01688315,88778.0,88767.0,0.02333]
[1763655554469,0.01688315,88778.0,88768.0,0.05210249]
[1763655554880,0.01688315,88778.0,88767.0,0.05210249]
[1763655555338,0.01788315,88795.0,88766.0,0.32696]
[1763655555339,0.01688315,88777.0,88766.0,0.32696]
[1763655555548,0.01688315,88777.0,88744.0,0.02447836]
[1763655555549,0.01688315,88777.0,88744.0,0.01321]
[1763655555758,0.01688315,88763.0,88759.0,0.02333]
[1763655555967,0.01688315,88777.0,88769.0,0.01126519]
[1763655556178,0.01788315,88795.0,88766.0,0.01126557]
[1763655556179,0.01688315,88795.0,88777.0,0.05210249]
[1763655556417,0.01688315,88795.0,88771.0,0.01126494]
[1763655556418,0.09018,88839.0,88802.0,0.37510249]
[1763655556664,0.09018,88839.0,88780.0,0.54859318]
[1763655556665,0.10784185,88869.0,88818.0,0.323]
[1763655556875,0.10784185,88869.0,88817.0,0.23531151]
[1763655556877,0.09018,88869.0,88821.0,0.323]
[1763655557092,0.0173035,88835.0,88821.0,0.323]
[1763655557299,0.0173035,88835.0,88819.0,0.02333]
[1763655557508,0.01688315,88821.0,88819.0,0.02333]
[1763655557717,0.01688315,88821.0,88817.0,0.01013]
[1763655557941,0.01688315,88821.0,88818.0,0.02333]
[1763655558142,0.09018,88820.0,88795.0,0.01013]
[1763655558350,0.01688315,88799.0,88795.0,0.01013]
[1763655559020,0.01688315,88799.0,88795.0,0.03346]
[1763655559310,0.01688315,88799.0,88785.0,0.01013]
[1763655559535,0.01730324,88799.0,88785.0,0.01013]
[1763655559747,0.01730324,88799.0,88795.0,0.001]
[1763655559966,0.04963,88797.0,88795.0,0.001]
[1763655560184,0.04963,88797.0,88740.0,0.00999999]
[1763655560185,0.01688315,88768.0,88727.0,0.05970136]
[1763655560409,0.01688315,88768.0,88697.0,0.02433]
[1763655560410,0.04605,88751.0,88697.0,0.02433]
[1763655560640,0.04963,88734.0,88697.0,0.02433]
[1763655560859,0.04963,88734.0,88691.0,0.23563164]
[1763655560860,0.04963,88734.0,88691.0,0.01013]
[1763655561083,0.13981,88734.0,88691.0,0.01013]
[1763655561321,0.13981,88734.0,88692.0,0.02254994]
[1763655561536,0.01688315,88748.0,88733.0,0.00037022]
[1763655562005,0.04963,88745.0,88733.0,0.00037022]
[1763655562272,0.01688315,88748.0,88736.0,0.05210249]
[1763655562478,0.01688315,88748.0,88733.0,0.00037022]
[1763655562682,0.04963,88738.0,88733.0,0.00037022]
[1763655562946,0.01888315,88748.0,88733.0,0.01037022]
[1763655563151,0.01688315,88748.0,88734.0,0.05210249]
[1763655563363,0.01688315,88748.0,88736.0,0.05210249]
[1763655563576,0.01688315,88783.0,88755.0,0.323]
[1763655563788,0.01688315,88783.0,88747.0,0.05210249]
[1763655563789,0.01688315,88783.0,88756.0,0.02253368]
[1763655564205,0.01688315,88783.0,88753.0,0.05210249]
[1763655564206,0.04963,88767.0,88754.0,0.02253419]
[1763655564413,0.00665132,88766.0,88756.0,0.05210249]
[1763655564638,0.04963,88770.0,88750.0,0.05210249]
[1763655564846,0.09018,88782.0,88752.0,0.05210249]
[1763655565051,0.01688315,88753.0,88752.0,0.05210249]
[1763655565278,0.01688315,88753.0,88719.0,0.01127154]
[1763655565279,0.01,88751.0,88707.0,0.02433]
[1763655565484,0.01688315,88753.0,88691.0,0.06983136]
[1763655565485,0.04963,88734.0,88698.0,0.004]
[1763655565908,0.04963,88734.0,88699.0,0.323]
[1763655566131,0.04963,88734.0,88698.0,0.004]
[1763655566132,0.13981,88734.0,88698.0,0.004]
[1763655566351,0.13981,88734.0,88680.0,0.57292318]
[1763655566586,0.13981,88734.0,88681.0,0.00396]
[1763655566933,0.323,88733.0,88681.0,0.00396]
[1763655567011,0.04963,88703.0,88679.0,0.01037]
[1763655567220,0.01688315,88738.0,88670.0,0.54879318]
[1763655567221,0.00396,88717.0,88681.0,0.00042089]
[1763655567449,0.04963,88693.0,88681.0,0.00042089]
[1763655567904,0.01688315,88682.0,88681.0,0.00042089]
[1763655568597,0.01688315,88703.0,88681.0,0.03512089]
[1763655568800,0.01688315,88703.0,88681.0,0.00042089]
[1763655568801,0.09018,88702.0,88681.0,0.00042089]
[1763655569010,0.02,88689.0,88681.0,0.00042089]
[1763655569352,0.01466632,88701.0,88681.0,0.00042089]
[1763655569353,0.04963,88684.0,88681.0,0.00142089]
[1763655569761,0.06651315,88682.0,88681.0,0.00142089]
[1763655570177,0.06651315,88682.0,88681.0,0.05352338]
[1763655570178,0.01688315,88682.0,88681.0,0.05352338]
[1763655570598,0.09037,88705.0,88681.0,0.05352338]
[1763655570599,0.04784,88718.0,88682.0,0.37510249]
[1763655570798,0.01768355,88730.0,88681.0,0.03612089]
[1763655570799,0.01,88722.0,88688.0,0.05210249]
[1763655571003,0.02168355,88730.0,88688.0,0.05210249]
[1763655571004,0.01688315,88703.0,88690.0,0.05210249]
[1763655571211,0.01688315,88703.0,88692.0,0.05210249]
[1763655571428,0.01688315,88703.0,88694.0,0.05210249]
[1763655571644,0.01688315,88717.0,88701.0,0.05210249]
[1763655571851,0.09037,88761.0,88720.0,0.05210249]
[1763655572059,0.09037,88761.0,88707.0,0.60069567]
[1763655572060,0.00396,88757.0,88722.0,0.05210249]
[1763655572268,0.00396,88757.0,88724.0,0.05210249]
[1763655572474,0.00396,88757.0,88726.0,0.05210249]
[1763655572686,0.09412,88775.0,88737.0,0.06223249]
[1763655572888,0.01767329,88831.0,88746.0,0.01126811]
[1763655572889,0.00396,88788.0,88746.0,0.01126811]
[1763655573092,0.00396,88788.0,88741.0,0.01126874]
[1763655573093,0.00012591,88753.0,88752.0,0.2774495]
[1763655573310,0.09412,88807.0,88752.0,0.2774495]
[1763655573311,0.09412,88807.0,88756.0,0.05210249]
[1763655573532,0.02162865,88805.0,88767.0,0.06618249]
[1763655573745,0.00396,88805.0,88767.0,0.06618249]
[1763655573969,0.00396,88805.0,88768.0,0.05210249]
[1763655574193,0.01688315,88769.0,88768.0,0.05210249]
[1763655574675,0.01688315,88769.0,88754.0,0.05210249]
[1763655575146,0.01688315,88769.0,88768.0,0.05210249]
[1763655575374,0.01688315,88769.0,88745.0,0.05210249]
[1763655575815,0.01688315,88748.0,88745.0,0.05210249]
[1763655576036,0.01688315,88769.0,88745.0,0.05210249]
[1763655576037,0.01688315,88752.0,88745.0,0.05210249]
[1763655576463,0.01688315,88769.0,88743.0,0.05210249]
[1763655576464,0.01688315,88750.0,88743.0,0.05210249]
[1763655576669,0.01688315,88750.0,88744.0,0.05210249]
[1763655576896,0.01688315,88750.0,88743.0,0.05210249]
[1763655577147,0.01688315,88750.0,88744.0,0.00012591]
[1763655577366,0.01688315,88749.0,88744.0,0.00012591]
[1763655578533,0.01688315,88749.0,88746.0,0.05210249]
[1763655578762,0.01638315,88749.0,88746.0,0.05210249]
[1763655579006,0.01688315,88769.0,88748.0,0.05210249]
[1763655579236,0.01688315,88769.0,88747.0,0.36884798]
[1763655579237,0.01688315,88769.0,88760.0,0.37510249]
[1763655579441,0.01688315,88769.0,88766.0,0.05210249]
[1763655579862,0.01688315,88769.0,88760.0,0.323]
[1763655579863,0.01688315,88769.0,88767.0,0.40968249]
[1763655580078,0.03455128,88799.0,88767.0,0.40968249]
[1763655580079,0.01688315,88799.0,88780.0,0.01126379]
[1763655580291,0.01688315,88799.0,88781.0,0.37510249]
[1763655580292,0.01688315,88785.0,88781.0,0.37510249]
[1763655580498,0.01688315,88785.0,88783.0,0.05210249]
[1763655580906,0.01688315,88785.0,88782.0,0.05210249]
[1763655581125,0.01688315,88785.0,88782.0,0.08668249]
[1763655581341,0.01688315,88799.0,88782.0,0.08668249]
[1763655581342,0.01688315,88799.0,88794.0,0.05210249]
[1763655581560,0.01700907,88799.0,88796.0,0.01126176]
[1763655581765,0.0004,88870.0,88790.0,0.01126252]
[1763655581766,0.09412,88857.0,88809.0,0.05210249]
[1763655581977,0.01688315,88810.0,88794.0,0.05210249]
[1763655582180,0.01688315,88810.0,88801.0,0.323]
[1763655582412,0.00012585,88826.0,88809.0,0.01396]
[1763655582855,0.00012585,88826.0,88811.0,0.37510249]
[1763655583277,0.00012585,88826.0,88796.0,0.03545]
[1763655583278,0.01688315,88812.0,88802.0,0.05210249]
[1763655583721,0.01688315,88812.0,88796.0,0.001]
[1763655583722,0.01688315,88812.0,88797.0,0.05210249]
[1763655583931,0.01688315,88812.0,88796.0,0.001]
[1763655583932,0.01688315,88797.0,88796.0,0.001]
[1763655584340,0.01688315,88797.0,88760.0,0.61046107]
[1763655584341,0.01688315,88797.0,88766.0,0.00396]
[1763655584612,0.01688315,88780.0,88766.0,0.00396]
[1763655585260,0.01688315,88780.0,88766.0,0.00437983]
[1763655585691,0.01688315,88780.0,88771.0,0.37510249]
[1763655586339,0.01688315,88780.0,88766.0,0.00041983]
[1763655587222,0.01688315,88780.0,88767.0,0.05210249]
[1763655587440,0.01688315,88780.0,88769.0,0.05210249]
[1763655587649,0.01688315,88780.0,88771.0,0.05210249]
[1763655587872,0.01688315,88780.0,88773.0,0.05210249]
[1763655588082,0.01688315,88780.0,88766.0,0.00041983]
[1763655588570,0.22,88785.0,88766.0,0.00041983]
[1763655588571,0.22,88785.0,88779.0,0.01037]
[1763655588780,0.03454741,88839.0,88797.0,0.05210249]
[1763655588990,0.03454741,88839.0,88792.0,0.01126227]
[1763655588991,0.03454741,88839.0,88801.0,0.37510249]
[1763655589425,0.03454741,88839.0,88792.0,0.00396]
[1763655589426,0.09412,88821.0,88793.0,0.05210249]
[1763655589856,0.01688315,88794.0,88793.0,0.05210249]
[1763655590269,0.01688315,88794.0,88782.0,0.07462957]
[1763655590441,0.01688315,88794.0,88782.0,0.05222841]
[1763655591533,0.01688315,88794.0,88784.0,0.05210249]
[1763655592148,0.01688315,88794.0,88782.0,0.00012592]
[1763655592354,0.01688315,88794.0,88786.0,0.05210249]
[1763655592778,0.01688315,88794.0,88782.0,0.05222841]
[1763655593763,0.01688315,88794.0,88784.0,0.05210249]
[1763655594104,0.01688315,88794.0,88786.0,0.05210249]
[1763655594461,0.01688315,88794.0,88785.0,0.02252632]
[1763655594462,0.01125315,88864.0,88785.0,0.02252632]
[1763655594463,0.01399426,88839.0,88830.0,0.05210249]
[1763655594685,0.04875,88895.0,88830.0,0.05210249]
[1763655594686,0.09412,88862.0,88830.0,0.05210249]
[1763655594923,0.04963,88856.0,88829.0,0.05210249]
[1763655595123,3.0,88860.0,88829.0,0.05210249]
[1763655595124,0.04963,88846.0,88829.0,0.05210249]
[1763655595342,0.04963,88849.0,88815.0,0.05210249]
[1763655595554,0.04963,88849.0,88791.0,0.0112624]
[1763655595555,0.04875,88863.0,88811.0,0.05210249]
[1763655595556,0.01688315,88826.0,88811.0,0.05210249]
[1763655596231,0.01688315,88826.0,88820.0,0.05210249]
[1763655596443,0.01688315,88826.0,88816.0,0.01125923]
[1763655596444,0.01688315,88826.0,88813.0,0.05210249]
[1763655596656,0.01688315,88826.0,88813.0,0.0633621]
[1763655596865,0.01688315,88826.0,88813.0,0.05210249]
[1763655597402,0.01688315,88826.0,88811.0,0.05210249]
[1763655598208,0.01688315,88812.0,88801.0,0.05210249]
[1763655598426,0.01688315,88826.0,88820.0,0.323]
[1763655598650,0.01688315,88826.0,88821.0,0.05210249]
[1763655599507,0.017009,88826.0,88817.0,0.05210249]
[1763655599950,0.017009,88826.0,88811.0,0.05210249]
[1763655600155,0.01688315,88812.0,88811.0,0.05210249]
[1763655600380,0.01688315,88812.0,88800.0,0.01126126]
[1763655600381,0.01688315,88812.0,88800.0,0.61046107]
[1763655600587,0.01688315,88812.0,88800.0,0.61442107]
[1763655600823,0.01688315,88812.0,88801.0,0.02252226]
[1763655601035,0.01688315,88812.0,88749.0,0.02801655]
[1763655601036,0.01688315,88812.0,88790.0,0.61046107]
[1763655601255,0.01688315,88812.0,88800.0,0.61046107]
[1763655601457,0.01688315,88812.0,88791.0,0.0225248]
[1763655601458,0.01688315,88812.0,88802.0,0.66256356]
[1763655602187,0.01688315,88811.0,88807.0,0.05210249]
[1763655602435,0.017009,88826.0,88811.0,0.05210249]
[1763655602657,0.017009,88826.0,88810.0,0.323]
[1763655602658,0.017009,88826.0,88818.0,0.05210249]
[1763655602896,0.017009,88826.0,88825.0,0.37510249]
[1763655602897,0.00012585,88826.0,88825.0,0.37510249]
[1763655603166,0.01688315,88858.0,88845.0,0.05210249]
[1763655603401,0.00012583,88858.0,88852.0,0.01125467]
[1763655603625,0.00012583,88858.0,88853.0,0.05606249]
[1763655603626,0.01688315,88857.0,88853.0,0.05606249]
[1763655603833,0.00012583,88858.0,88853.0,0.05606249]
[1763655603834,0.00012583,88858.0,88857.0,0.60018323]
[1763655604264,0.0004,88870.0,88857.0,0.60018323]
[1763655604265,0.0004,88870.0,88869.0,0.60015284]
[1763655604481,0.0004,88890.0,88889.0,0.22499971]
[1763655604688,0.0004,88930.0,88890.0,0.323]
[1763655604897,0.0004,88930.0,88911.0,0.37510249]
[1763655604898,0.0005258,88920.0,88911.0,0.37510249]
[1763655605133,0.0005258,88920.0,88913.0,0.05210249]
[1763655605134,0.01688315,88919.0,88913.0,0.05210249]
[1763655605340,0.01688315,88919.0,88912.0,0.00396]
[1763655605341,0.01688315,88919.0,88912.0,0.05210249]
[1763655605550,0.01688315,88918.0,88912.0,0.05210249]
[1763655605763,0.01688315,88917.0,88912.0,0.05210249]
[1763655605997,0.0005258,88920.0,88908.0,0.23619833]
[1763655605998,0.0005258,88920.0,88918.0,0.37510249]
[1763655606208,0.0005258,88920.0,88919.0,0.05210249]
[1763655607064,0.0005258,88920.0,88910.0,0.05210249]
[1763655607263,0.01688315,88917.0,88910.0,0.05210249]
[1763655607736,0.0005258,88920.0,88910.0,0.05210249]
[1763655607950,0.01688315,88916.0,88911.0,0.37510249]
[1763655608161,0.01688315,88916.0,88851.0,0.05620967]
[1763655608162,0.01688315,88916.0,88890.0,0.61046107]
[1763655608390,0.01688315,88916.0,88869.0,0.0111334]
[1763655608391,0.01688315,88884.0,88880.0,0.61046107]
[1763655608624,0.01688315,88898.0,88880.0,0.61046107]
[1763655608881,0.01688315,88898.0,88870.0,0.61046107]
[1763655609107,0.01688315,88898.0,88880.0,0.61046107]
[1763655609337,0.01688315,88898.0,88850.0,0.00999999]
[1763655609338,0.01688315,88881.0,88850.0,0.00999999]
[1763655609558,0.01688315,88881.0,88870.0,0.61046107]
[1763655609791,0.01688315,88881.0,88880.0,0.001]
[1763655610478,0.01688315,88881.0,88871.0,0.323]
[1763655610960,0.01688315,88881.0,88871.0,0.00041934]
[1763655611642,0.04963,88873.0,88871.0,0.00041934]
[1763655612110,3.0,88871.0,88815.0,0.01157]
[1763655612331,0.01,88852.0,88822.0,0.00012583]
[1763655612544,0.04963,88847.0,88822.0,0.00012583]
[1763655612805,0.009604,88871.0,88830.0,0.61046107]
[1763655612806,0.09942,88863.0,88830.0,0.61046107]
[1763655613012,0.01688315,88853.0,88840.0,0.61046107]
[1763655613220,0.01688315,88853.0,88822.0,0.00012583]
[1763655613433,0.01688315,88853.0,88830.0,0.61046107]
[1763655613647,0.01688315,88853.0,88840.0,0.61046107]
[1763655613880,0.01688315,88853.0,88830.0,0.93346107]
[1763655613881,0.001,88847.0,88830.0,0.93346107]
[1763655614097,0.01688315,88831.0,88820.0,0.66588979]
[1763655614320,0.01688315,88831.0,88830.0,0.61046107]
[1763655614575,0.001,88847.0,88830.0,0.61046107]
[1763655614820,0.001,88847.0,88831.0,0.05210249]
[1763655615311,0.01688315,88853.0,88831.0,0.05210249]
[1763655615782,0.01688315,88853.0,88833.0,0.05210249]
[1763655615783,0.01688315,88834.0,88833.0,0.05210249]
[1763655616009,0.01688315,88834.0,88831.0,0.05210249]
[1763655616227,0.01688315,88834.0,88833.0,0.05210249]
[1763655616461,0.01688315,88834.0,88822.0,0.05222832]
[1763655616687,0.01688315,88834.0,88822.0,0.00012583]
[1763655617050,0.01688315,88834.0,88822.0,0.02264277]
[1763655617254,0.01688315,88834.0,88824.0,0.05210249]
[1763655617482,0.01688315,88834.0,88822.0,0.00012583]
[1763655617852,0.04963,88833.0,88822.0,0.00012583]
[1763655618149,0.01688315,88834.0,88822.0,0.00012583]
[1763655618605,0.01688315,88834.0,88833.0,0.05310249]
[1763655619010,0.10896315,88834.0,88822.0,0.00012583]
[1763655619209,0.01129232,88833.0,88822.0,0.00012583]
[1763655619561,0.01688315,88834.0,88822.0,0.00012583]
[1763655620934,0.01688315,88834.0,88823.0,0.05210249]
[1763655621133,0.01688315,88853.0,88825.0,0.05210249]
[1763655621134,0.01688315,88832.0,88825.0,0.05210249]
[1763655621334,0.01688315,88832.0,88826.0,0.02251593]
[1763655621746,0.01688315,88832.0,88825.0,0.05210249]
[1763655621954,0.00322287,88823.0,88822.0,0.00012583]
[1763655622363,0.00322287,88823.0,88822.0,0.07474526]
[1763655622571,0.00322287,88823.0,88822.0,0.05222832]
[1763655623796,0.00322287,88823.0,88822.0,0.07474526]
[1763655624223,0.00322287,88823.0,88822.0,0.00012583]
[1763655624424,0.09530287,88823.0,88822.0,0.00012583]
[1763655624625,0.00322287,88823.0,88822.0,0.00012583]
[1763655625296,0.09530287,88823.0,88822.0,0.00012583]
[1763655626199,0.10583316,88823.0,88822.0,0.00012583]
[1763655626399,0.00322287,88823.0,88822.0,0.00012583]
[1763655626643,0.09530287,88823.0,88822.0,0.00012583]
[1763655626824,0.00322287,88823.0,88822.0,0.00012583]
[1763655627186,0.00422287,88823.0,88822.0,0.00012583]
[1763655627674,0.09630287,88823.0,88822.0,0.00012583]
[1763655627853,0.14593287,88823.0,88822.0,0.00012583]
[1763655628723,0.16052616,88823.0,88822.0,0.00012583]
[1763655628945,0.16052616,88823.0,88762.0,0.01126608]
[1763655628946,0.16052616,88823.0,88772.0,0.0117]
[1763655628947,3.10989616,88823.0,88772.0,0.0117]
[1763655629184,3.10989616,88823.0,88772.0,0.01211983]
[1763655629185,0.01688315,88787.0,88772.0,0.01211983]
[1763655629399,0.01688315,88787.0,88773.0,0.02252937]
[1763655629806,0.01688315,88787.0,88772.0,0.01211983]
[1763655629807,0.11545315,88787.0,88772.0,0.00041983]
[1763655630019,0.01688315,88773.0,88772.0,0.00041983]
[1763655631093,0.01688315,88801.0,88784.0,0.323]
[1763655631303,0.01688315,88801.0,88792.0,0.05210249]
[1763655631732,0.01688315,88801.0,88782.0,0.05210249]
[1763655631941,0.01688315,88783.0,88782.0,0.05210249]
[1763655632359,0.001,88787.0,88782.0,0.05210249]
[1763655632567,0.01688315,88783.0,88782.0,0.05210249]
[1763655632774,0.01688315,88783.0,88777.0,0.61046107]
[1763655632775,0.01688315,88783.0,88778.0,0.37510249]
[1763655633017,0.01688315,88783.0,88778.0,0.05210249]
[1763655633223,0.01688315,88783.0,88773.0,0.59471923]
[1763655633224,0.01688315,88783.0,88774.0,0.05210249]
[1763655633850,0.01688315,88783.0,88773.0,0.59471923]
[1763655634071,0.01688315,88783.0,88779.0,0.05210249]
[1763655634311,0.09969,88813.0,88778.0,0.001]
[1763655634312,0.01688315,88780.0,88778.0,0.001]
[1763655635363,0.01,88779.0,88778.0,0.001]
[1763655635632,3.01,88779.0,88778.0,0.001]
[1763655635847,0.04963,88773.0,88772.0,0.00041983]
[1763655636056,3.05359,88773.0,88772.0,0.00041983]
[1763655636477,0.04963,88773.0,88772.0,0.00041983]
[1763655636723,0.01688315,88780.0,88772.0,0.00041983]
[1763655637166,0.001,88779.0,88772.0,0.00041983]
[1763655637804,0.001,88779.0,88772.0,0.05252232]
[1763655638238,0.001,88779.0,88772.0,0.00041983]
[1763655638620,0.04963,88773.0,88772.0,0.00041983]
[1763655638822,0.01688315,88780.0,88772.0,0.00041983]
[1763655639459,0.02353447,88780.0,88772.0,0.00041983]
[1763655639717,0.01688315,88780.0,88772.0,0.00041983]
[1763655639916,0.01788315,88780.0,88772.0,0.00041983]
[1763655640347,0.01688315,88780.0,88772.0,0.00041983]
[1763655641214,0.06651315,88780.0,88772.0,0.00041983]
[1763655641451,0.01688315,88780.0,88772.0,0.00041983]
[1763655641648,0.01688315,88780.0,88772.0,0.05252232]
[1763655642094,0.01688315,88780.0,88774.0,0.05210249]
[1763655642302,0.01688315,88780.0,88776.0,0.05210249]
[1763655642555,0.01688315,88780.0,88772.0,0.00041983]
[1763655642786,0.01688315,88780.0,88772.0,0.05252232]
[1763655643022,0.01688315,88780.0,88774.0,0.05210249]
[1763655643267,0.01688315,88780.0,88776.0,0.05210249]
[1763655643710,0.01688315,88780.0,88772.0,0.00041983]
[1763655644754,0.01688315,88780.0,88773.0,0.05210249]
[1763655644953,0.01688315,88780.0,88775.0,0.05210249]
[1763655645156,0.01688315,88780.0,88777.0,0.05210249]
[1763655645364,0.0225295,88779.0,88777.0,0.05210249]
[1763655645572,0.00184907,88778.0,88777.0,0.05210249]
[1763655645776,0.0225295,88795.0,88781.0,0.05210249]
[1763655645989,0.0225295,88795.0,88786.0,0.37510249]
[1763655646201,0.0225295,88813.0,88786.0,0.37510249]
[1763655646412,0.0225295,88813.0,88788.0,0.37510249]
[1763655646631,0.0225295,88789.0,88788.0,0.05210249]
[1763655646834,0.0225295,88789.0,88786.0,0.05210249]
[1763655647036,0.0225295,88789.0,88772.0,0.09195983]
[1763655647037,0.0225295,88789.0,88774.0,0.05210249]
[1763655647239,0.0225295,88775.0,88774.0,0.05210249]
[1763655647384,0.0225295,88789.0,88776.0,0.37510249]
[1763655647583,0.0225295,88789.0,88778.0,0.05210249]
[1763655648183,0.0225295,88789.0,88780.0,0.05210249]
[1763655648833,0.0225295,88789.0,88782.0,0.05210249]
[1763655649204,0.0225295,88789.0,88784.0,0.05210249]
[1763655649418,0.0225295,88789.0,88786.0,0.05210249]
[1763655649677,0.00396,88826.0,88786.0,0.05210249]
[1763655649678,0.0225295,88812.0,88786.0,0.37510249]
[1763655649869,0.0225295,88792.0,88790.0,0.05210249]
[1763655650074,0.0225295,88812.0,88790.0,0.05210249]
[1763655650228,0.0225295,88791.0,88790.0,0.05210249]
[1763655650591,0.0225295,88791.0,88788.0,0.01126278]
[1763655650794,0.0225295,88791.0,88789.0,0.05210249]
[1763655651112,0.0225295,88791.0,88788.0,0.05606249]
[1763655651310,0.0225295,88812.0,88788.0,0.39032527]
[1763655651541,0.0225295,88793.0,88790.0,0.37510249]
[1763655651916,0.00039716,88791.0,88790.0,0.37510249]
[1763655652599,0.00039716,88791.0,88790.0,0.46664249]
[1763655653022,0.00039716,88791.0,88790.0,0.05210249]
[1763655653238,0.00039716,88791.0,88789.0,0.001]
[1763655653447,0.0225295,88812.0,88790.0,0.05210249]
[1763655653448,0.04963,88806.0,88790.0,0.05210249]
[1763655653659,0.0225295,88790.0,88783.0,0.11406683]
[1763655653871,0.0225295,88790.0,88763.0,0.09154]
[1763655654098,0.0225295,88812.0,88775.0,0.09154]